bitfinex-derivatives/quotes_BTCF0:USTF0_20250509
["timestamp","ask_amount","ask_price","bid_price","bid_amount"]
[1746753925291,0.821585,102640.0,102630.0,0.20041758]
[1746753925590,0.821585,102640.0,102630.0,0.28647836]
[1746753925786,0.821585,102640.0,102630.0,0.09157436]
[1746753925986,0.821585,102640.0,102630.0,0.20041758]
[1746753926194,0.821585,102640.0,102630.0,0.39532158]
[1746753926589,0.821585,102640.0,102630.0,0.40332158]
[1746753926590,0.823585,102640.0,102630.0,0.40332158]
[1746753926785,0.823585,102640.0,102630.0,0.20841758]
[1746753926988,0.823585,102640.0,102630.0,0.11781758]
[1746753927188,0.822585,102640.0,102630.0,0.00497436]
[1746753927387,0.822585,102640.0,102630.0,0.00397436]
[1746753927984,0.1795,102640.0,102630.0,0.8721648]
[1746753928189,0.0873,102640.0,102630.0,1.1501648]
[1746753928489,0.001,102640.0,102630.0,1.01027836]
[1746753928790,0.002,102640.0,102630.0,1.33239679]
[1746753928992,0.49813491,102670.0,102660.0,0.194847]
[1746753929288,0.49271981,102670.0,102660.0,0.555647]
[1746753929495,0.58701981,102670.0,102660.0,0.84729022]
[1746753929890,0.39219181,102670.0,102660.0,0.84729022]
[1746753930090,0.49271981,102670.0,102660.0,1.00729022]
[1746753930396,0.55788283,102670.0,102660.0,1.09929022]
[1746753930696,0.55788283,102670.0,102660.0,1.20813344]
[1746753931082,0.56088283,102670.0,102660.0,1.20813344]
[1746753931697,0.56088283,102670.0,102660.0,1.09929022]
[1746753932192,0.27715483,102670.0,102660.0,1.20813344]
[1746753932493,0.27715483,102670.0,102660.0,1.34813344]
[1746753932494,0.06816302,102670.0,102660.0,1.34813344]
[1746753932791,0.06816302,102670.0,102660.0,1.44553744]
[1746753933096,0.26299102,102670.0,102660.0,1.57553744]
[1746753933393,0.26099102,102670.0,102660.0,1.57653744]
[1746753933598,0.26099102,102670.0,102660.0,1.47913344]
[1746753933897,0.25899102,102670.0,102660.0,1.48113344]
[1746753934193,0.09982238,102670.0,102660.0,1.48113344]
[1746753934396,0.09982238,102670.0,102660.0,2.98113344]
[1746753934587,0.3589112,102680.0,102670.0,0.194828]
[1746753934782,0.3589095,102680.0,102670.0,0.91097122]
[1746753934987,0.14823357,102690.0,102680.0,0.1948091]
[1746753935184,0.2931727,102700.0,102690.0,0.1947901]
[1746753935389,0.3909027,102700.0,102690.0,0.19744322]
[1746753935587,0.4802027,102700.0,102690.0,0.28534322]
[1746753935791,0.4802027,102700.0,102690.0,0.48013332]
[1746753936889,0.4802027,102700.0,102690.0,0.28534322]
[1746753937196,0.8410027,102700.0,102690.0,0.1775]
[1746753937787,0.8410027,102700.0,102690.0,0.3722901]
[1746753937994,0.8753952,102700.0,102690.0,0.3722901]
[1746753938192,0.8753952,102700.0,102690.0,0.001]
[1746753939996,0.1947901,102690.0,102680.0,0.6028053]
[1746753940196,0.7377901,102690.0,102680.0,0.6028053]
[1746753940390,0.3769901,102690.0,102680.0,0.5250053]
[1746753940586,0.092,102690.0,102680.0,0.99464852]
[1746753940897,0.092,102690.0,102680.0,1.08354852]
[1746753941099,0.092,102690.0,102680.0,1.24354852]
[1746753942492,0.092,102690.0,102680.0,1.24654852]
[1746753943300,0.092,102690.0,102680.0,0.88574852]
[1746753943996,0.3754901,102690.0,102680.0,0.88574852]
[1746753944392,0.3754901,102690.0,102680.0,1.24654852]
[1746753944997,0.3754901,102690.0,102680.0,0.7769053]
[1746753945198,0.3754901,102690.0,102680.0,1.24654852]
[1746753945498,0.3754901,102690.0,102680.0,0.83704652]
[1746753946102,0.3754901,102690.0,102680.0,0.78834452]
[1746753946294,0.3754901,102690.0,102680.0,1.14914452]
[1746753947101,0.3754901,102690.0,102680.0,1.0403013]
[1746753947397,0.3754901,102690.0,102680.0,1.14914452]
[1746753947597,0.3754901,102690.0,102680.0,0.73964252]
[1746753947804,0.3754901,102690.0,102680.0,0.6307993]
[1746753948004,0.3754901,102690.0,102680.0,0.54484322]
[1746753948394,0.3754901,102690.0,102680.0,0.436]
[1746753948594,0.3754901,102690.0,102680.0,0.54484322]
[1746753948901,0.3754901,102690.0,102680.0,1.10045232]
[1746753949301,0.3754901,102690.0,102680.0,0.73965232]
[1746753949602,0.3754901,102690.0,102680.0,1.10045232]
[1746753949806,0.3754901,102690.0,102680.0,0.73965232]
[1746753950806,0.41575829,102690.0,102680.0,0.73965232]
[1746753951004,0.41575829,102690.0,102680.0,1.10045232]
[1746753951202,0.41575829,102690.0,102680.0,0.73965232]
[1746753951415,0.41575829,102690.0,102680.0,1.10045232]
[1746753951801,0.41575829,102690.0,102680.0,0.73965232]
[1746753953110,0.41575829,102690.0,102680.0,1.10045232]
[1746753953804,0.41575829,102690.0,102680.0,0.99881189]
[1746753954006,0.41575829,102690.0,102680.0,1.10765511]
[1746753954712,0.41575829,102690.0,102680.0,1.01875511]
[1746753955009,0.67657204,102690.0,102680.0,1.01875511]
[1746753955212,0.67657204,102690.0,102680.0,0.66394601]
[1746753955814,0.67657204,102690.0,102680.0,0.49795511]
[1746753956106,0.67657204,102690.0,102680.0,0.65795511]
[1746753956409,0.67657204,102690.0,102680.0,0.54911189]
[1746753957111,0.67657204,102690.0,102680.0,0.90991189]
[1746753957507,0.67657204,102690.0,102680.0,0.90891189]
[1746753957702,0.67857204,102690.0,102680.0,0.90691189]
[1746753960512,0.67857204,102690.0,102680.0,0.54611189]
[1746753960702,0.78741526,102690.0,102680.0,0.16]
[1746753961213,0.1948091,102680.0,102670.0,0.1645]
[1746753961414,0.1948091,102680.0,102670.0,0.0867]
[1746753961415,0.7369091,102680.0,102670.0,0.0867]
[1746753962404,0.7369091,102680.0,102670.0,0.0887]
[1746753962608,0.84575232,102680.0,102670.0,0.002]
[1746753963213,0.7369091,102680.0,102670.0,0.002]
[1746753963713,0.7369091,102680.0,102670.0,0.003]
[1746753964908,0.84575232,102680.0,102670.0,0.003]
[1746753965107,0.194847,102660.0,102650.0,0.96460345]
[1746753965308,0.8767452,102670.0,102660.0,0.194847]
[1746753965502,0.7833452,102670.0,102660.0,0.48939022]
[1746753965702,0.3738376,102670.0,102660.0,0.85019022]
[1746753966010,0.766324,102680.0,102670.0,0.194828]
[1746753966209,0.696024,102680.0,102670.0,0.48937122]
[1746753966612,0.695024,102680.0,102670.0,0.380528]
[1746753966918,0.694024,102680.0,102670.0,0.380528]
[1746753967519,0.695024,102680.0,102670.0,0.380528]
[1746753967817,0.696024,102680.0,102670.0,0.469328]
[1746753968111,0.002,102680.0,102670.0,0.93897122]
[1746753968317,0.002,102680.0,102670.0,1.09897122]
[1746753968913,0.1968091,102680.0,102670.0,1.09897122]
[1746753969723,0.1968091,102680.0,102670.0,0.73817122]
[1746753969909,0.1968091,102680.0,102670.0,0.629328]
[1746753970111,0.1968091,102680.0,102670.0,0.4345]
[1746753970311,0.2851091,102680.0,102670.0,1.10197122]
[1746753971019,0.43385992,102680.0,102670.0,1.10097122]
[1746753971213,0.43385992,102680.0,102670.0,0.74317122]
[1746753971721,0.43385992,102680.0,102670.0,0.74117122]
[1746753972314,0.34355992,102680.0,102670.0,1.10197122]
[1746753972519,0.14875082,102680.0,102670.0,1.10197122]
[1746753972916,0.34355992,102680.0,102670.0,0.74117122]
[1746753973519,0.14875082,102680.0,102670.0,1.10197122]
[1746753973926,0.14875082,102680.0,102670.0,1.30197122]
[1746753974314,0.34355992,102680.0,102670.0,1.30197122]
[1746753974514,0.34355992,102680.0,102670.0,1.11197122]
[1746753975426,0.1948091,102680.0,102670.0,1.11197122]
[1746753975614,0.2861091,102680.0,102670.0,1.11197122]
[1746753977315,0.1948091,102680.0,102670.0,1.25808362]
[1746753977623,0.51746978,102690.0,102680.0,0.1948091]
[1746753977813,0.13176968,102690.0,102680.0,0.84165232]
[1746753978016,0.04026968,102690.0,102680.0,1.22049554]
[1746753978216,0.04026968,102690.0,102680.0,1.38049554]
[1746753978422,0.04026968,102690.0,102680.0,1.27165232]
[1746753978618,0.59556459,102700.0,102690.0,0.1947901]
[1746753978619,0.30339689,102700.0,102690.0,0.1947901]
[1746753978816,0.30339689,102700.0,102690.0,1.04307654]
[1746753978817,0.49816799,102700.0,102690.0,1.04307654]
[1746753979216,0.30339689,102700.0,102690.0,1.20307654]
[1746753979620,0.26804375,102700.0,102690.0,1.20307654]
[1746753980619,0.17654375,102700.0,102690.0,1.20307654]
[1746753980825,0.17954375,102700.0,102690.0,1.40407654]
[1746753981028,0.19814428,102710.0,102700.0,0.1947711]
[1746753981229,0.19814428,102710.0,102700.0,1.07401432]
[1746753982221,0.19814428,102710.0,102700.0,1.23401432]
[1746753982423,0.20114428,102710.0,102700.0,1.23401432]
[1746753983021,0.20414428,102710.0,102700.0,1.23401432]
[1746753983423,0.37516882,102720.0,102700.0,1.23401432]
[1746753983621,0.37516882,102720.0,102710.0,0.8341522]
[1746753983825,0.33582837,102720.0,102710.0,0.94299542]
[1746753984130,0.24652837,102720.0,102710.0,2.76299542]
[1746753984327,0.24652837,102720.0,102710.0,2.97919464]
[1746753984721,0.17027677,102720.0,102710.0,3.14559464]
[1746753985127,0.12905647,102720.0,102710.0,3.14559464]
[1746753985326,0.27192058,102730.0,102720.0,0.1947332]
[1746753985527,0.27192058,102730.0,102720.0,1.00761964]
[1746753985825,0.27192058,102730.0,102720.0,1.19761964]
[1746753986232,0.27192058,102730.0,102720.0,1.35761964]
[1746753986622,0.19216568,102730.0,102720.0,1.30761964]
[1746753986929,0.11805068,102730.0,102720.0,1.51496764]
[1746753987131,0.11805068,102730.0,102720.0,1.51796764]
[1746753987324,0.11805068,102730.0,102720.0,1.42061964]
[1746753987725,0.11805068,102730.0,102720.0,1.2059332]
[1746753987930,0.11805068,102730.0,102720.0,1.42361964]
[1746753988835,0.31276498,102730.0,102720.0,1.2059332]
[1746753989033,0.2857143,102730.0,102720.0,0.9059332]
[1746753989330,0.3771143,102730.0,102720.0,0.85477642]
[1746753989631,0.3771143,102730.0,102720.0,2.35477642]
[1746753990131,0.3771143,102730.0,102720.0,2.15397642]
[1746753990327,0.4706143,102730.0,102720.0,2.51477642]
[1746753990532,0.4706143,102730.0,102720.0,0.5268]
[1746753990839,0.4706143,102730.0,102720.0,0.3607332]
[1746753990840,0.8314143,102730.0,102720.0,0.3607332]
[1746753991132,0.8314143,102730.0,102720.0,0.2007332]
[1746753993141,0.8314143,102730.0,102720.0,0.006]
[1746753993327,0.94025752,102730.0,102720.0,0.006]
[1746753993827,1.28760552,102730.0,102720.0,0.006]
[1746753994222,1.19760552,102730.0,102720.0,0.006]
[1746753995238,1.19760552,102730.0,102720.0,0.003]
[1746753995535,1.10025752,102730.0,102720.0,0.003]
[1746753995834,0.1947332,102720.0,102710.0,0.2921252]
[1746753996034,0.7419332,102720.0,102710.0,0.2921252]
[1746753996235,0.7419332,102720.0,102710.0,0.30698682]
[1746753996637,0.7419332,102720.0,102710.0,0.20961082]
[1746753998040,0.001,102730.0,102720.0,0.1947332]
[1746753998337,0.00243,102740.0,102720.0,0.88592675]
[1746753998638,0.00243,102740.0,102730.0,0.66435752]
[1746753998845,0.00243,102740.0,102730.0,0.94879783]
[1746753999047,0.00243,102740.0,102730.0,1.12879783]
[1746753999342,0.00243,102740.0,102730.0,1.29879783]
[1746753999538,0.00243,102740.0,102730.0,1.18995461]
[1746753999743,0.09263,102740.0,102730.0,1.29879783]
[1746754000239,0.09263,102740.0,102730.0,1.18979811]
[1746754000446,0.18703,102740.0,102730.0,1.29855752]
[1746754001336,0.18703,102740.0,102730.0,1.30255752]
[1746754001943,0.09263,102740.0,102730.0,1.30255752]
[1746754003046,0.00343,102740.0,102730.0,1.30255752]
[1746754003545,0.00343,102740.0,102730.0,1.30826757]
[1746754003948,0.09613,102740.0,102730.0,1.30826757]
[1746754004142,0.09613,102740.0,102730.0,2.80826757]
[1746754004335,0.09613,102740.0,102730.0,2.80255752]
[1746754007544,0.00343,102740.0,102730.0,2.80255752]
[1746754007844,0.0881,102750.0,102740.0,0.1946953]
[1746754008147,0.0881,102750.0,102740.0,1.13028174]
[1746754008350,0.0881,102750.0,102740.0,1.02143852]
[1746754008645,0.0881,102750.0,102740.0,1.19143852]
[1746754009146,0.0881,102750.0,102740.0,1.03260247]
[1746754009447,0.0881,102750.0,102740.0,1.22260247]
[1746754010249,0.0881,102750.0,102740.0,1.22460247]
[1746754010441,0.0881,102750.0,102740.0,1.20460247]
[1746754012049,0.0881,102750.0,102740.0,1.03460247]
[1746754014252,0.0881,102750.0,102740.0,1.39540247]
[1746754015446,1e-07,102760.0,102750.0,0.1946764]
[1746754015650,0.24278918,102780.0,102770.0,0.1946385]
[1746754015956,0.24278918,102780.0,102770.0,1.08508172]
[1746754016248,0.33588918,102780.0,102770.0,1.46228172]
[1746754016453,0.33588918,102780.0,102770.0,2.96913861]
[1746754016642,0.33588918,102780.0,102770.0,2.87548078]
[1746754016848,0.33588918,102780.0,102770.0,2.984324]
[1746754017042,0.53050868,102780.0,102770.0,2.60428078]
[1746754017351,0.53050868,102780.0,102770.0,0.94428078]
[1746754017651,0.55994028,102780.0,102770.0,0.68586981]
[1746754017852,0.55994028,102780.0,102770.0,0.68986981]
[1746754018446,0.55994028,102780.0,102770.0,0.58102659]
[1746754018647,0.92074028,102780.0,102770.0,0.22022659]
[1746754019048,0.7726511,102780.0,102770.0,0.22322659]
[1746754019242,1.2799511,102780.0,102770.0,0.02858809]
[1746754019447,1.2799511,102780.0,102770.0,0.02218539]
[1746754019448,1.38879432,102780.0,102770.0,0.02218539]
[1746754019647,1.13879432,102780.0,102770.0,0.02218539]
[1746754021155,1.13879432,102780.0,102770.0,0.21682389]
[1746754021853,1.0299511,102780.0,102770.0,0.21682389]
[1746754023558,0.9326511,102780.0,102770.0,0.21682389]
[1746754024358,0.9326511,102780.0,102770.0,0.02218539]
[1746754025352,0.9326511,102780.0,102770.0,0.21682389]
[1746754025660,0.7380316,102780.0,102770.0,0.21682389]
[1746754025957,0.9326511,102780.0,102770.0,0.21682389]
[1746754026157,0.7726511,102780.0,102770.0,0.21682389]
[1746754026465,0.7726511,102780.0,102770.0,0.22348692]
[1746754026945,0.5780316,102780.0,102770.0,0.22348692]
[1746754027146,0.4118511,102780.0,102770.0,0.22348692]
[1746754027355,0.7726511,102780.0,102770.0,0.22348692]
[1746754027654,0.4118511,102780.0,102770.0,0.22348692]
[1746754027958,0.7726511,102780.0,102770.0,0.22348692]
[1746754028459,0.4118511,102780.0,102770.0,0.22348692]
[1746754029147,0.7726511,102780.0,102770.0,0.22348692]
[1746754029456,0.7726511,102780.0,102770.0,0.22344166]
[1746754030651,0.7726511,102780.0,102770.0,0.22336813]
[1746754031761,0.4118511,102780.0,102770.0,0.22336813]
[1746754032153,0.7726511,102780.0,102770.0,0.02872963]
[1746754032355,0.97879432,102780.0,102770.0,0.02872963]
[1746754032555,0.97879432,102780.0,102770.0,0.02218539]
[1746754033162,1.13879432,102780.0,102770.0,0.02218539]
[1746754033357,0.3406756,102760.0,102750.0,0.1946764]
[1746754033556,0.3406756,102760.0,102750.0,0.30961174]
[1746754034055,0.5215756,102760.0,102750.0,0.40171199]
[1746754034250,0.5215756,102760.0,102750.0,0.30961199]
[1746754034471,0.5225756,102760.0,102750.0,0.20976877]
[1746754034964,0.4252388,102760.0,102750.0,0.20976877]
[1746754035260,0.3765723,102760.0,102750.0,0.39706877]
[1746754035460,0.3765723,102760.0,102750.0,0.50591199]
[1746754035659,0.52523178,102760.0,102750.0,0.50591199]
[1746754035862,0.52523178,102760.0,102750.0,0.51091199]
[1746754036464,0.52523178,102760.0,102750.0,0.51098972]
[1746754037254,0.52523178,102760.0,102750.0,0.87178972]
[1746754037656,0.52523178,102760.0,102750.0,0.5109419]
[1746754038159,0.52523178,102760.0,102750.0,0.8717419]
[1746754038555,0.33055948,102760.0,102750.0,0.8717419]
[1746754038762,0.1819,102760.0,102750.0,0.98058512]
[1746754038960,0.1819,102760.0,102750.0,0.8717419]
[1746754039161,0.1819,102760.0,102750.0,0.98058512]
[1746754039961,0.1819,102760.0,102750.0,0.8717419]
[1746754040166,0.3765574,102760.0,102750.0,0.8717419]
[1746754040352,0.1819,102760.0,102750.0,0.98058512]
[1746754040555,0.001,102760.0,102750.0,1.00058512]
[1746754040755,0.001,102760.0,102750.0,1.17058512]
[1746754040955,0.001,102760.0,102750.0,1.00058512]
[1746754041156,0.001,102760.0,102750.0,1.16058512]
[1746754042165,0.001,102760.0,102750.0,2.66058512]
[1746754044161,0.14867827,102770.0,102760.0,0.1946574]
[1746754044359,0.14867827,102770.0,102760.0,0.9700229]
[1746754045163,0.14867827,102770.0,102760.0,1.1300229]
[1746754045368,0.14967827,102770.0,102760.0,1.3360229]
[1746754045664,0.14967827,102770.0,102760.0,1.35503207]
[1746754046266,0.001,102770.0,102760.0,1.35503207]
[1746754047657,0.001,102770.0,102760.0,2.85503207]
[1746754048254,0.001,102770.0,102760.0,3.31314006]
[1746754048568,0.17840987,102780.0,102770.0,0.1946385]
[1746754048866,0.17840987,102780.0,102770.0,0.759604]
[1746754049068,0.17840987,102780.0,102770.0,0.86651317]
[1746754049262,0.17840987,102780.0,102770.0,1.02651317]
[1746754049866,0.0297316,102780.0,102770.0,1.02651317]
[1746754050066,0.1161316,102780.0,102770.0,1.02851317]
[1746754050266,0.1161316,102780.0,102770.0,1.02239089]
[1746754050467,0.1161316,102780.0,102770.0,1.02739089]
[1746754050668,0.0297316,102780.0,102770.0,1.02739089]
[1746754052371,0.2243511,102780.0,102770.0,0.92479467]
[1746754052869,0.4919511,102780.0,102770.0,1.02739089]
[1746754053057,0.4919511,102780.0,102770.0,1.01238172]
[1746754053264,0.4919511,102780.0,102770.0,0.7435385]
[1746754053469,0.4919511,102780.0,102770.0,0.85238172]
[1746754053670,0.4919511,102780.0,102770.0,0.49158172]
[1746754053863,0.4919511,102780.0,102770.0,0.85238172]
[1746754054369,0.4919511,102780.0,102770.0,0.7435385]
[1746754054664,0.4919511,102780.0,102770.0,0.49158172]
[1746754054871,0.4919511,102780.0,102770.0,0.85238172]
[1746754055174,0.4919511,102780.0,102770.0,0.3827385]
[1746754055364,0.4919511,102780.0,102770.0,0.85238172]
[1746754055762,0.4919511,102780.0,102770.0,0.49158172]
[1746754055965,0.4919511,102780.0,102770.0,0.3827385]
[1746754056165,0.4919511,102780.0,102770.0,0.2016385]
[1746754056872,0.1946574,102760.0,102750.0,0.76163722]
[1746754057067,0.1946574,102760.0,102750.0,0.86234028]
[1746754057376,0.4779574,102760.0,102750.0,0.85663722]
[1746754057676,0.4779574,102760.0,102750.0,0.94913722]
[1746754057860,0.4779574,102760.0,102750.0,0.95813722]
[1746754058066,0.4789574,102760.0,102750.0,0.95813722]
[1746754058266,0.4789574,102760.0,102750.0,0.21858546]
[1746754058565,0.4789574,102760.0,102750.0,0.22358546]
[1746754060278,0.4789574,102760.0,102750.0,0.31308546]
[1746754060580,0.4789574,102760.0,102750.0,0.50962868]
[1746754061974,0.2843,102760.0,102750.0,0.6184719]
[1746754062172,0.0956,102760.0,102750.0,0.9792719]
[1746754062375,0.001,102760.0,102750.0,0.96434794]
[1746754062575,0.1203316,102780.0,102750.0,1.26404852]
[1746754062876,0.4541125,102780.0,102770.0,0.66428172]
[1746754063071,0.5419125,102780.0,102770.0,0.66428172]
[1746754063276,0.5419125,102780.0,102770.0,0.84758172]
[1746754063986,0.5419125,102780.0,102770.0,0.84858172]
[1746754065377,0.5419125,102780.0,102770.0,0.7397385]
[1746754065575,0.1946574,102760.0,102750.0,0.003]
[1746754065770,0.1946574,102760.0,102750.0,0.20304322]
[1746754065972,0.4649574,102760.0,102750.0,0.75851962]
[1746754066171,0.4649574,102760.0,102750.0,0.75551962]
[1746754066883,0.4659574,102760.0,102750.0,0.40271962]
[1746754067084,0.4659574,102760.0,102750.0,0.2938764]
[1746754067382,0.4659574,102760.0,102750.0,0.40771962]
[1746754067769,0.4659574,102760.0,102750.0,0.76851962]
[1746754067974,0.4659574,102760.0,102750.0,0.5684764]
[1746754068181,0.4659574,102760.0,102750.0,0.67731962]
[1746754068684,0.4659574,102760.0,102750.0,0.5684764]
[1746754068871,0.4659574,102760.0,102750.0,0.67731962]
[1746754069070,0.4659574,102760.0,102750.0,0.76881962]
[1746754069278,0.4659574,102760.0,102750.0,0.85851962]
[1746754069482,0.2713,102760.0,102750.0,0.96736284]
[1746754070283,0.2713,102760.0,102750.0,1.12736284]
[1746754070487,0.61443132,102760.0,102750.0,1.12736284]
[1746754070785,0.41977392,102760.0,102750.0,1.12736284]
[1746754071085,0.61443132,102760.0,102750.0,1.12736284]
[1746754071288,0.52383132,102760.0,102750.0,1.12736284]
[1746754071586,0.52383132,102760.0,102750.0,1.01851962]
[1746754073481,0.52383132,102760.0,102750.0,1.12736284]
[1746754073789,0.52383132,102760.0,102750.0,1.01851962]
[1746754074582,0.3753574,102760.0,102750.0,1.12736284]
[1746754075090,0.3753574,102760.0,102750.0,1.01851962]
[1746754075285,0.3753574,102760.0,102750.0,1.12736284]
[1746754075487,0.3777874,102760.0,102750.0,1.12736284]
[1746754077284,0.2893874,102760.0,102750.0,1.12736284]
[1746754079191,0.3825874,102760.0,102750.0,0.85851962]
[1746754080496,0.09473,102760.0,102750.0,0.96736284]
[1746754080990,0.2893874,102760.0,102750.0,0.7496764]
[1746754081190,0.2893874,102760.0,102750.0,1.12736284]
[1746754082195,0.2893874,102760.0,102750.0,0.96736284]
[1746754082600,0.3850874,102760.0,102750.0,0.85851962]
[1746754084298,0.3850874,102760.0,102750.0,0.96736284]
[1746754084595,0.3850874,102760.0,102750.0,0.85851962]
[1746754087392,0.19043,102760.0,102750.0,0.96736284]
[1746754087595,0.00343,102760.0,102750.0,1.25736284]
[1746754088198,0.00343,102760.0,102750.0,1.41736284]
[1746754089296,0.12738753,102760.0,102750.0,1.41736284]
[1746754090499,0.12738753,102760.0,102750.0,1.49516284]
[1746754091293,0.32204493,102760.0,102750.0,0.9874764]
[1746754091598,0.41654493,102760.0,102750.0,1.09631962]
[1746754091800,0.3869874,102760.0,102750.0,1.20516284]
[1746754092102,0.3869874,102760.0,102750.0,1.04516284]
[1746754093300,0.4820874,102760.0,102750.0,0.93631962]
[1746754096500,0.4820874,102760.0,102750.0,0.85851962]
[1746754097009,0.4820874,102760.0,102750.0,0.7496764]
[1746754097201,0.4820874,102760.0,102750.0,0.85851962]
[1746754098510,0.6060769,102760.0,102750.0,0.96736284]
[1746754099406,0.4114195,102760.0,102750.0,0.96736284]
[1746754099909,0.3163195,102760.0,102750.0,0.96736284]
[1746754102609,0.5109769,102760.0,102750.0,0.96736284]
[1746754102817,0.3163195,102760.0,102750.0,0.96736284]
[1746754104207,0.5109769,102760.0,102750.0,0.96736284]
[1746754104403,0.2219195,102760.0,102750.0,0.96736284]
[1746754104602,0.2219195,102760.0,102750.0,1.19736284]
[1746754105112,0.2219195,102760.0,102750.0,1.35736284]
[1746754105311,0.09793,102760.0,102750.0,1.35736284]
[1746754105510,0.09793,102760.0,102750.0,1.43516284]
[1746754106615,0.09793,102760.0,102750.0,1.32631962]
[1746754106919,0.09793,102760.0,102750.0,1.25516284]
[1746754108929,0.09793,102760.0,102750.0,1.45516284]
[1746754109127,0.09793,102760.0,102750.0,1.43516284]
[1746754109528,0.00343,102760.0,102750.0,1.43516284]
[1746754109722,0.17820552,102780.0,102750.0,1.35243291]
[1746754109928,0.17820552,102780.0,102770.0,0.66428172]
[1746754110319,0.17820552,102780.0,102770.0,0.84088172]
[1746754110825,0.17820552,102780.0,102770.0,1.20168172]
[1746754111419,0.27110552,102780.0,102770.0,1.20168172]
[1746754112028,0.17820552,102780.0,102770.0,1.34352494]
[1746754112328,0.17820552,102780.0,102770.0,1.58468172]
[1746754112828,0.17820552,102780.0,102770.0,1.58568172]
[1746754113020,0.26970552,102780.0,102770.0,1.39568172]
[1746754113436,0.1212316,102780.0,102770.0,1.39568172]
[1746754114229,0.2150316,102780.0,102770.0,1.39568172]
[1746754114430,0.2150316,102780.0,102770.0,1.47348172]
[1746754115131,0.2150316,102780.0,102770.0,1.31348172]
[1746754115629,0.4096511,102780.0,102770.0,1.31348172]
[1746754116329,0.4096511,102780.0,102770.0,1.19528172]
[1746754116527,0.4096511,102780.0,102770.0,0.8034]
[1746754116727,0.15190392,102790.0,102770.0,0.41898644]
[1746754116922,0.35807071,102810.0,102790.0,0.0972929]
[1746754117123,0.35807071,102810.0,102800.0,1.20412492]
[1746754117431,0.35807071,102810.0,102800.0,1.40116814]
[1746754117825,0.35807071,102810.0,102800.0,1.29232492]
[1746754118020,0.35807071,102810.0,102800.0,1.40116814]
[1746754118228,0.13700416,102830.0,102820.0,0.1945438]
[1746754118426,0.33152906,102830.0,102820.0,0.30338702]
[1746754118824,0.42322906,102830.0,102820.0,2.25618702]
[1746754119028,0.42322906,102830.0,102820.0,1.89538702]
[1746754119332,0.22870416,102830.0,102820.0,0.75618702]
[1746754119526,0.22870416,102830.0,102820.0,0.84628702]
[1746754119834,0.42422906,102830.0,102820.0,2.43568702]
[1746754120031,0.31840416,102830.0,102820.0,2.43568702]
[1746754120233,0.1814,102830.0,102820.0,2.44303192]
[1746754120632,0.0927,102830.0,102820.0,2.44303192]
[1746754121535,0.2872249,102830.0,102820.0,2.44303192]
[1746754121727,0.3775249,102830.0,102820.0,2.35363192]
[1746754122326,0.183,102830.0,102820.0,2.35363192]
[1746754124831,0.3775249,102830.0,102820.0,2.1546887]
[1746754125234,0.3775249,102830.0,102820.0,1.7938887]
[1746754125433,0.3775249,102830.0,102820.0,2.1546887]
[1746754125637,0.3775249,102830.0,102820.0,0.6546887]
[1746754129634,0.3775249,102830.0,102820.0,0.76353192]
[1746754129834,0.183,102830.0,102820.0,0.76353192]
[1746754130027,0.183,102830.0,102820.0,0.85273192]
[1746754130236,0.0927,102830.0,102820.0,0.94803192]
[1746754135552,0.2872249,102830.0,102820.0,0.94803192]
[1746754136037,0.3788249,102830.0,102820.0,0.94803192]
[1746754137540,0.3788249,102830.0,102820.0,0.85273192]
[1746754137938,0.3788249,102830.0,102820.0,0.7438887]
[1746754139944,0.1843,102830.0,102820.0,0.85273192]
[1746754140137,0.0927,102830.0,102820.0,0.85273192]
[1746754141142,0.001,102830.0,102820.0,0.85273192]
[1746754142331,0.001,102830.0,102820.0,0.85822806]
[1746754142536,0.001,102830.0,102820.0,1.07822806]
[1746754142741,0.001,102830.0,102820.0,0.88822806]
[1746754142939,0.001,102830.0,102820.0,0.77938484]
[1746754143135,0.1955249,102830.0,102820.0,1.04826993]
[1746754143337,0.3876249,102830.0,102820.0,1.01826993]
[1746754143535,0.3876249,102830.0,102820.0,0.90942671]
[1746754143739,0.3876249,102830.0,102820.0,0.9038887]
[1746754144144,0.3876249,102830.0,102820.0,0.7438887]
[1746754145145,0.65646812,102830.0,102820.0,0.6546887]
[1746754145345,0.5476249,102830.0,102820.0,0.2938887]
[1746754146039,0.2576,102830.0,102820.0,0.76353192]
[1746754146347,0.0976,102830.0,102820.0,0.85653192]
[1746754146645,0.001,102830.0,102820.0,0.85653192]
[1746754147448,0.001,102830.0,102820.0,0.93433192]
[1746754147645,0.001,102830.0,102820.0,0.93988909]
[1746754148049,0.001,102830.0,102820.0,0.97988909]
[1746754148346,0.001,102830.0,102820.0,1.13988909]
[1746754149544,0.001,102830.0,102820.0,1.31988909]
[1746754150045,0.001,102830.0,102820.0,1.45000909]
[1746754150346,0.001,102830.0,102820.0,1.45001679]
[1746754150651,0.00343,102830.0,102820.0,1.45001679]
[1746754151048,0.00343,102830.0,102820.0,2.95001679]
[1746754151747,0.00343,102830.0,102820.0,2.94445192]
[1746754153158,0.00343,102830.0,102820.0,3.28445192]
[1746754153743,0.00343,102830.0,102820.0,3.28980983]
[1746754155354,0.00343,102830.0,102820.0,3.06980983]
[1746754155552,0.00343,102830.0,102820.0,3.06981183]
[1746754155854,0.00343,102830.0,102820.0,3.06445192]
[1746754156652,0.00343,102830.0,102820.0,2.95755384]
[1746754156853,0.00343,102830.0,102820.0,3.06639706]
[1746754161857,0.00343,102830.0,102820.0,2.93627706]
[1746754162055,0.00343,102830.0,102820.0,3.19559706]
[1746754165859,0.21810919,102840.0,102830.0,0.1945249]
[1746754166064,0.1885,102840.0,102830.0,1.18526812]
[1746754166252,0.0889,102850.0,102840.0,0.194506]
[1746754166454,0.267,102850.0,102840.0,0.84664922]
[1746754167359,0.272,102850.0,102840.0,0.84664922]
[1746754167862,0.275,102850.0,102840.0,0.84664922]
[1746754169354,0.275,102850.0,102840.0,1.14549244]
[1746754169555,0.275,102850.0,102840.0,1.16549244]
[1746754169866,0.30485894,102850.0,102840.0,0.86664922]
[1746754170455,0.29785894,102850.0,102840.0,0.86764922]
[1746754172459,0.49234604,102850.0,102840.0,0.650706]
[1746754173556,0.49234604,102850.0,102840.0,0.289906]
[1746754173855,0.49234604,102850.0,102840.0,0.650706]
[1746754174557,0.29785894,102850.0,102840.0,0.650706]
[1746754175556,0.29785894,102850.0,102840.0,0.75954922]
[1746754175956,0.29785894,102850.0,102840.0,0.85054922]
[1746754176157,0.29785894,102850.0,102840.0,0.94674922]
[1746754178265,0.29785894,102850.0,102840.0,0.85054922]
[1746754178466,0.29785894,102850.0,102840.0,0.86054922]
[1746754182667,0.49234604,102850.0,102840.0,0.660706]
[1746754184063,0.49234604,102850.0,102840.0,0.650706]
[1746754186572,0.29785894,102850.0,102840.0,0.650706]